bitfinex/quotes_ETHUSD_20220118
["timestamp","ask_amount","ask_price","bid_price","bid_amount"]
[1642507477816,1.10212581,3176.3,3176.2,0.00341054]
[1642507478512,1.10212581,3176.3,3176.2,2.69120077]
[1642507479111,0.451,3176.7,3176.3,0.15745]
[1642507479112,1.23823,3176.7,3176.3,0.15745]
[1642507479557,1.23823,3176.7,3176.4,0.00227369]
[1642507480156,2.26812304,3176.5,3176.4,0.00227369]
[1642507480757,2.56812304,3176.5,3176.1,0.00397896]
[1642507480956,0.78733,3176.4,3176.1,0.00397896]
[1642507481558,0.78733,3176.4,3176.2,2.68796969]
[1642507481855,0.78733,3176.4,3176.3,0.00284211]
[1642507482855,0.78733,3176.4,3176.1,0.00397896]
[1642507484309,1.5746911,3176.4,3176.1,0.00397896]
[1642507484509,0.4259,3176.3,3176.1,0.00397896]
[1642507484707,0.4259,3176.3,3175.8,0.00568423]
[1642507485107,1.41548286,3176.1,3175.8,0.00568423]
[1642507485508,1.71548286,3176.1,3175.8,0.00568423]
[1642507485711,1.41548286,3176.1,3175.8,0.00568423]
[1642507486773,1.36548286,3176.1,3175.8,0.00568423]
[1642507491303,1.31548286,3176.1,3175.8,0.00568423]
[1642507492105,0.1259,3176.0,3175.8,0.00568423]
[1642507492305,0.91332,3176.0,3175.8,0.00568423]
[1642507492703,0.91332,3176.0,3175.7,0.00625265]
[1642507494005,0.78742,3176.0,3175.7,0.00625265]
[1642507494456,0.1259,3175.9,3175.7,0.00625265]
[1642507494656,1.37906647,3175.6,3175.4,0.00795792]
[1642507494856,1.37906647,3175.6,3175.3,0.00852635]
[1642507495556,1.37906647,3175.6,3175.3,0.16600635]
[1642507495959,1.37906647,3175.6,3175.4,0.00795792]
[1642507496758,0.1259,3175.9,3175.4,0.00795792]
[1642507496959,0.78742,3176.0,3175.4,0.00795792]
[1642507498605,1.15294128,3175.7,3175.4,0.00795792]
[1642507498803,0.78742,3176.0,3175.4,0.00795792]
[1642507499002,0.451,3176.1,3175.4,0.00795792]
[1642507499205,0.751,3176.1,3175.5,0.15747]
[1642507499606,0.751,3176.1,3175.6,0.00682108]
[1642507499807,0.451,3176.1,3175.6,0.00682108]
[1642507500008,1.3793704,3176.0,3175.6,0.00682108]
[1642507500410,1.3793704,3176.0,3175.3,0.00852635]
[1642507500611,2.05645,3176.2,3175.6,0.15747]
[1642507500612,0.1259,3176.2,3175.6,0.15747]
[1642507500808,0.1259,3176.6,3175.8,0.01206703]
[1642507501009,0.1259,3177.0,3175.8,0.01206703]
[1642507501216,0.12703685,3177.0,3175.9,0.13101581]
[1642507501412,0.00113685,3177.0,3175.9,0.13101581]
[1642507501610,1.45931797,3176.8,3176.0,2.04817253]
[1642507501854,1.45931797,3176.8,3176.0,2.34817253]
[1642507502054,1.45931797,3176.8,3176.1,0.16139896]
[1642507502453,1.45931797,3176.8,3176.2,0.00341054]
[1642507503757,1.45931797,3176.8,3176.3,0.1259]
[1642507503956,1.45931797,3176.8,3176.3,0.28332]
[1642507504154,1.45931797,3176.8,3176.4,0.00227369]
[1642507504758,1.45931797,3176.8,3176.4,0.31710369]
[1642507504959,1.45931797,3176.8,3176.4,3.00476613]
[1642507505158,1.45931797,3176.8,3176.5,0.00170527]
[1642507506201,0.12703685,3177.0,3176.5,2.68936771]
[1642507506406,0.12703685,3177.0,3176.5,2.84677771]
[1642507506603,0.00113685,3177.0,3176.6,0.00113684]
[1642507506802,0.00113685,3177.0,3176.5,2.83670865]
[1642507507002,0.00170527,3176.9,3176.5,2.83670865]
[1642507507403,0.00113684,3176.8,3176.6,2.68766244]
[1642507507806,1.33215695,3177.0,3176.6,2.68766244]
[1642507508005,1.45805695,3177.0,3176.6,2.68766244]
[1642507508205,0.00170527,3176.9,3176.6,2.68766244]
[1642507508605,0.00113684,3176.8,3176.6,2.68766244]
[1642507509009,0.00170527,3176.9,3176.6,2.68766244]
[1642507509456,1.53215695,3177.0,3176.6,2.68766244]
[1642507509457,0.00113684,3176.8,3176.6,2.68766244]
[1642507509856,0.00170527,3176.9,3176.6,2.68766244]
[1642507510259,0.00113684,3176.8,3176.6,2.68766244]
[1642507510660,1.53215695,3177.0,3176.6,2.68766244]
[1642507510661,0.00170527,3176.9,3176.6,2.68766244]
[1642507511060,0.00113684,3176.8,3176.6,2.68766244]
[1642507511461,0.00170527,3176.9,3176.6,2.68766244]
[1642507511668,0.00170527,3176.9,3176.6,2.98766244]
[1642507511861,0.2,3177.0,3176.7,4.4]
[1642507511862,0.00113684,3176.8,3176.7,4.4]
[1642507513005,1.60228494,3177.9,3176.8,5.5259]
[1642507513205,1.60228494,3177.9,3176.8,6.72743567]
[1642507513404,1.60228494,3177.9,3177.0,5.4]
[1642507513606,2.44783185,3178.1,3177.1,1.1258]
[1642507513805,0.0022737,3177.8,3177.4,1.14521357]
[1642507514006,0.0022737,3177.8,3177.4,1.93190357]
[1642507514209,2.44783185,3178.1,3177.5,5.12199]
[1642507514409,2.44783185,3178.1,3177.5,5.42369527]
[1642507514609,0.00113685,3178.0,3177.6,1.00113685]
[1642507515412,0.00113685,3178.0,3177.7,3.47438542]
[1642507515611,0.00113685,3178.0,3177.8,1.0]
[1642507516010,0.00113685,3178.0,3177.7,3.32871926]
[1642507516212,0.00113685,3178.0,3177.6,0.15846685]
[1642507516858,0.00113685,3178.0,3177.9,2.68766244]
[1642507517753,0.20113685,3178.0,3177.9,2.68766244]
[1642507517953,0.20113685,3178.0,3177.8,0.31471]
[1642507518555,0.10272457,3178.0,3177.8,0.31471]
[1642507518754,0.1258,3178.3,3177.8,0.31471]
[1642507518957,1.43053582,3178.4,3177.8,0.31471]
[1642507519155,0.00113684,3178.2,3177.8,0.31471]
[1642507519558,0.00113684,3178.2,3177.9,2.68685116]
[1642507519759,0.12693684,3178.2,3177.9,2.68685116]
[1642507520358,0.12693684,3178.2,3177.8,0.31471]
[1642507522203,0.78696,3178.0,3177.8,0.31471]
[1642507522404,0.1258,3177.9,3177.8,0.31471]
[1642507522806,0.5768,3177.9,3177.8,0.00113685]
[1642507523005,5.3268,3177.9,3177.8,0.00113685]
[1642507523304,6.3268,3177.9,3177.5,0.00284212]
[1642507524105,0.5768,3177.9,3177.5,0.00284212]
[1642507524359,0.5768,3177.9,3177.5,0.31760212]
[1642507524759,0.5768,3177.9,3177.6,0.0022737]
[1642507524960,2.97325756,3178.0,3177.6,0.1596437]
[1642507525360,4.85015754,3178.0,3177.7,0.00170527]
[1642507525760,3.2478726,3178.0,3177.7,0.00170527]
[1642507528305,3.8478726,3178.0,3177.7,0.00170527]
[1642507528905,3.2478726,3178.0,3177.7,0.00170527]
[1642507529914,3.2478726,3178.0,3177.7,2.68889273]
[1642507530312,4.0347926,3178.0,3177.8,0.00113685]
[1642507531311,4.0347926,3178.0,3177.6,0.0022737]
[1642507531954,7.29526498,3178.0,3177.6,0.0022737]
[1642507532153,0.451,3177.9,3177.6,0.0022737]
[1642507533958,0.78704,3177.8,3177.6,0.0022737]
[1642507534159,2.1508695,3177.8,3177.6,0.0022737]
[1642507534362,2.1508695,3177.8,3177.3,0.00397897]
[1642507534562,2.0250695,3177.8,3177.3,0.00397897]
[1642507535364,3.5031923,3177.7,3177.3,0.00397897]
[1642507535606,0.78722,3177.5,3177.3,0.00397897]
[1642507535804,5.0758,3177.4,3177.2,0.00454739]
[1642507536005,5.8268,3177.4,3176.6,0.00795793]
[1642507536307,1.79847877,3176.7,3176.2,0.01023163]
[1642507536507,0.451,3176.6,3176.2,0.01023163]
[1642507537308,2.2706517,3176.5,3176.2,0.01023163]
[1642507537506,3.0216517,3176.5,3176.2,0.01023163]
[1642507537908,2.2343417,3176.5,3176.2,0.01023163]
[1642507539107,2.2343417,3176.5,3176.3,0.15746]
[1642507539564,2.2343417,3176.5,3176.4,0.00909478]
[1642507540663,1.9343417,3176.5,3176.4,0.00909478]
[1642507544714,1.9343417,3176.5,3176.1,0.01080005]
[1642507545116,2.96542157,3177.2,3176.2,0.1259]
[1642507545521,2.01685,3177.2,3176.3,0.0096632]
[1642507545716,0.1259,3177.1,3176.3,0.0096632]
[1642507546115,3.14499435,3176.4,3176.1,0.01080005]
[1642507546515,3.14499435,3176.4,3176.3,0.31485]
[1642507546956,3.14499435,3176.4,3176.3,0.3245132]
[1642507548760,3.09499435,3176.4,3176.3,2.59253646]
[1642507548961,1.08906915,3176.4,3176.3,2.59253646]
[1642507549560,1.22346836,3176.4,3176.3,0.31485]
[1642507550606,1.22346836,3176.4,3175.7,1.62914128]
[1642507550809,1.22346836,3176.4,3175.3,3.09236401]
[1642507551006,1.22346836,3176.4,3175.8,0.12874212]
[1642507551204,1.22346836,3176.4,3175.8,0.00284212]
[1642507551404,1.22346836,3176.4,3175.4,0.1259]
[1642507551607,0.00284212,3176.3,3175.9,0.7872079]
[1642507551806,1.82958497,3176.3,3175.2,2.56200916]
[1642507552006,1.82958497,3176.3,3175.3,0.1259]
[1642507552007,0.00227369,3176.2,3175.3,0.1259]
[1642507552207,0.00397896,3176.2,3175.3,0.12703685]
[1642507552406,0.00397896,3176.2,3175.1,5.9773189]
[1642507552407,0.12931054,3176.1,3175.0,3.9388]
[1642507552708,0.00397897,3176.0,3175.1,0.00113684]
[1642507553108,1.33633721,3175.3,3175.1,0.00113684]
[1642507554567,2.12372721,3175.3,3175.1,0.00113684]
[1642507555666,0.78739,3175.3,3175.1,0.00113684]
[1642507555870,0.78739,3175.3,3175.1,0.78844684]
[1642507556066,0.78739,3175.3,3175.2,0.4259]
[1642507558616,1.57451,3175.6,3175.2,0.4259]
[1642507558819,0.00397897,3176.0,3175.3,3.20461696]
[1642507559118,0.00341054,3175.9,3175.4,1.16357883]
[1642507559319,0.00341054,3175.9,3175.5,0.01977331]
[1642507559520,0.00284212,3175.8,3175.6,0.1259]
[1642507559720,2.36207,3176.3,3175.8,5.4]
[1642507560120,0.00227369,3176.2,3175.9,1.0]
[1642507560520,0.00170527,3176.1,3176.0,0.78699]
[1642507560925,0.00170527,3176.1,3176.0,4.39026582]
[1642507561121,0.00170527,3176.1,3176.0,5.39026582]
[1642507562158,0.00170527,3176.1,3176.0,24.03616582]
[1642507562358,0.78689,3176.7,3176.1,5.4]
[1642507562559,0.78689,3176.7,3176.2,7.00739081]
[1642507562760,0.00284212,3176.6,3176.3,1.57374]
[1642507562959,0.00284212,3176.6,3176.4,3.53591202]
[1642507563160,0.78689,3176.7,3176.5,5.85]
[1642507563357,0.78689,3176.7,3176.6,3.28838677]
[1642507563564,0.78689,3176.7,3176.6,4.28838677]
[1642507563759,0.78689,3176.7,3176.6,1.0]
[1642507564159,0.78689,3176.7,3176.5,1.6]
[1642507564563,0.00284212,3176.6,3176.5,4.72857157]
[1642507567117,0.00284212,3176.6,3176.5,4.68108179]
[1642507567815,0.00284212,3176.6,3176.5,4.38108179]
[1642507568825,0.00284212,3176.6,3176.5,4.68108179]
[1642507569662,0.00284212,3176.6,3176.5,1.6]
[1642507570462,0.00284212,3176.6,3176.5,4.7]
[1642507571061,0.00284212,3176.6,3176.5,4.4]
[1642507571466,0.54382757,3176.6,3176.5,6.71844996]
[1642507573611,0.54382757,3176.6,3176.5,3.61844996]
[1642507573813,0.54382757,3176.6,3176.5,3.31844996]
[1642507574019,0.54382757,3176.6,3176.5,2.31844996]
[1642507574214,0.66972757,3176.6,3176.5,2.01844996]
[1642507575019,2.32518288,3176.6,3176.5,2.01844996]
[1642507576215,0.66972757,3176.6,3176.5,2.31844996]
[1642507576418,0.66972757,3176.6,3176.5,0.3]
[1642507576622,0.54382757,3176.6,3176.5,0.3]
[1642507576861,0.54382757,3176.6,3176.5,8.94513666]
[1642507577061,1.61268181,3177.1,3176.6,5.7]
[1642507577062,0.78684,3177.0,3176.6,5.7]
[1642507577263,0.78684,3177.0,3176.7,3.40698457]
[1642507577460,0.78911369,3177.0,3176.7,4.40698457]
[1642507577661,0.78911369,3177.0,3176.7,4.70698457]
[1642507577865,0.78911369,3177.0,3176.7,6.28058967]
[1642507578665,0.00227369,3177.0,3176.7,6.28058967]
[1642507578867,0.00227369,3177.0,3176.8,1.5735931]
[1642507579067,0.00227369,3177.0,3176.9,6.81365065]
[1642507579567,0.00227369,3177.0,3176.9,7.81365065]
[1642507581809,0.00227369,3177.0,3176.9,4.71365065]
[1642507582209,0.00227369,3177.0,3176.9,4.55]
[1642507582609,0.00227369,3177.0,3176.9,1.6]
[1642507582811,0.00227369,3177.0,3176.9,0.3]
[1642507583511,2.19131549,3177.0,3176.9,0.3]
[1642507583715,3.89127549,3177.0,3176.4,4.1615978]
[1642507583915,1.49398269,3176.5,3176.4,0.1259]
[1642507584113,1.61988269,3176.5,3176.4,0.1259]
[1642507584369,1.61988269,3176.5,3176.4,0.12703685]
[1642507585469,1.49398269,3176.5,3176.4,0.12703685]
[1642507585668,0.78711,3176.7,3176.4,0.12703685]
[1642507585869,0.00170527,3176.9,3176.4,0.12703685]
[1642507586271,0.00113684,3176.8,3176.4,0.12703685]
[1642507586470,0.00113684,3176.8,3176.4,0.00113685]
[1642507586671,0.00170527,3176.9,3176.4,1.78820905]
[1642507586877,0.00170527,3176.9,3176.4,2.38820905]
[1642507587074,0.78818684,3176.8,3176.4,1.38820905]
[1642507587271,0.78818684,3176.8,3176.4,1.08820905]
[1642507587470,0.78818684,3176.8,3176.4,1.38820905]
[1642507588713,0.78818684,3176.8,3176.5,3.06855796]
[1642507589114,0.78818684,3176.8,3176.5,4.94242366]
[1642507589316,0.78818684,3176.8,3176.6,1.0]
[1642507589515,0.78818684,3176.8,3176.6,2.0869312]
[1642507589720,0.00113684,3176.8,3176.6,1.7869312]
[1642507590214,0.00113684,3176.8,3176.5,1.8738657]
[1642507590215,1.17847443,3176.7,3176.5,1.8738657]
[1642507590424,1.17847443,3176.7,3176.5,0.3]
[1642507590619,1.17847443,3176.7,3176.4,0.00113685]
[1642507590920,0.1259,3176.6,3176.3,0.30170527]
[1642507592369,0.91293,3176.6,3176.3,0.30170527]
[1642507593164,0.78703,3176.6,3176.3,0.30170527]
[1642507593965,3.09352583,3176.6,3176.3,0.30170527]
[1642507594669,0.78703,3176.6,3176.3,0.30170527]
[1642507596410,2.14729381,3176.5,3176.3,0.30170527]
[1642507597608,0.78703,3176.6,3176.3,0.30170527]
[1642507597811,0.78703,3176.6,3176.4,2.04986715]
[1642507598509,0.78703,3176.6,3176.4,2.83689945]
[1642507599376,0.78703,3176.6,3176.5,2.04986715]
[1642507599778,0.78703,3176.6,3175.8,1.51686925]
[1642507599779,4.85,3176.5,3175.8,1.51686925]
[1642507599982,0.01236173,3175.9,3175.8,1.44206925]
[1642507600177,0.99246173,3175.9,3175.6,2.27530388]
[1642507600379,0.1259,3175.8,3175.7,2.27530388]
[1642507600676,0.1259,3175.8,3175.7,2.27871442]
[1642507600878,1.57786206,3175.8,3175.7,2.27871442]
[1642507601277,1.56108678,3175.8,3175.7,2.27871442]
[1642507601679,1.56108678,3175.8,3175.7,0.00341054]
[1642507602077,1.56108678,3175.8,3174.9,0.00795793]
[1642507602484,0.78742,3175.6,3174.9,0.00795793]
[1642507602680,1.25795174,3175.3,3174.9,0.00795793]
[1642507603309,1.25795174,3175.3,3174.9,0.30795793]
[1642507603512,2.04540174,3175.3,3174.8,0.00852636]
[1642507603716,2.04540174,3175.3,3175.0,0.00738951]
[1642507603913,2.04540174,3175.3,3174.8,0.00852636]
[1642507604618,0.1259,3175.2,3174.8,0.00852636]
[1642507604817,1.36449,3175.2,3174.7,0.00909478]
[1642507605614,2.1521,3175.2,3174.7,0.00909478]
[1642507606616,0.00631342,3175.1,3174.7,0.00909478]
[1642507606870,0.78763,3174.9,3174.7,0.30909478]
[1642507607068,0.78763,3174.9,3174.5,0.01023163]
[1642507607269,0.78763,3174.9,3174.2,2.27530388]
[1642507607270,1.98566611,3174.4,3174.2,2.27530388]
[1642507607470,0.6915,3174.4,3174.2,2.27530388]
[1642507607676,0.6915,3174.4,3174.0,2.27530388]
[1642507608066,0.6915,3174.4,3174.1,0.01250532]
[1642507608468,1.38078412,3174.2,3174.1,0.01250532]
[1642507610511,0.78771,3174.4,3174.1,0.01250532]
[1642507611517,1.50029205,3174.3,3174.1,0.01250532]
[1642507612820,1.62629205,3174.3,3174.1,0.01250532]
[1642507613214,2.2,3174.2,3173.8,1.55088753]
[1642507613417,0.91377,3174.1,3173.8,1.55088753]
[1642507613615,0.451,3174.0,3173.9,0.00113685]
[1642507614466,0.451,3174.0,3173.8,0.00170527]
[1642507614867,0.91377,3174.1,3173.8,0.00170527]
[1642507615067,0.78777,3174.1,3173.8,0.00170527]
[1642507616667,0.78777,3174.1,3173.8,2.3402438]
[1642507616867,0.78777,3174.1,3173.8,2.6402438]
[1642507617066,1.88344676,3174.1,3173.8,2.6402438]
[1642507617269,1.88344676,3174.1,3173.8,1.8525928]
[1642507617868,1.88344676,3174.1,3173.9,1.55088753]
[1642507618916,1.88344676,3174.1,3173.8,1.8525928]
[1642507619919,1.88344676,3174.1,3173.8,0.30170527]
[1642507620119,1.88344676,3174.1,3173.8,0.00170527]
[1642507620519,1.88344676,3174.1,3173.4,0.00397896]
[1642507622563,1.88344676,3174.1,3173.3,0.00454739]
[1642507622962,1.14422868,3173.6,3173.3,0.00454739]
[1642507623164,1.93207868,3173.6,3173.2,0.00511581]
[1642507625165,0.78785,3173.6,3173.2,1.00511581]
[1642507625609,0.78785,3173.6,3173.3,0.00454739]
[1642507626012,0.78785,3173.6,3173.2,0.00511581]
[1642507627010,0.78785,3173.6,3173.4,3.4807644]
[1642507627411,0.78785,3173.6,3173.5,0.00341054]
[1642507627612,2.84549381,3173.7,3173.5,0.00341054]
[1642507628013,2.84549381,3173.7,3173.5,1.63328741]
[1642507628412,2.84549381,3173.7,3173.6,0.00284212]
[1642507629472,6.86816834,3173.7,3173.3,1.55088753]
[1642507629669,2.49018,3173.6,3173.3,1.55088753]
[1642507629868,2.49018,3173.6,3173.4,0.00113684]
[1642507629869,3.401,3173.5,3173.4,0.00113684]
[1642507630073,3.527,3173.5,3173.1,2.27530388]
[1642507630270,1.68951489,3173.2,3173.1,2.27530388]
[1642507630670,2.8351241,3173.2,3173.1,2.27530388]
[1642507631275,1.14653921,3173.2,3173.1,2.27530388]
[1642507631470,1.14558921,3173.2,3173.1,2.27530388]
[1642507631673,0.01655662,3173.0,3172.5,2.1966536]
[1642507631873,0.451,3172.9,3172.5,2.1966536]
[1642507632070,0.451,3172.9,3172.1,2.81857737]
[1642507632071,0.577,3172.9,3172.6,0.00454739]
[1642507632270,2.95,3172.8,3172.1,2.1966536]
[1642507632472,0.57441,3172.7,3172.1,2.1966536]
[1642507632672,1.36268,3172.7,3172.2,0.0022737]
[1642507633115,1.35730001,3172.6,3172.2,0.0022737]
[1642507633314,2.15352,3172.5,3172.2,0.0022737]
[1642507633516,2.94185,3172.5,3172.2,0.0022737]
[1642507634116,3.45,3172.4,3172.1,2.1966536]
[1642507634320,0.577,3172.3,3171.8,4.84702455]
[1642507634520,1.5237,3172.3,3171.8,1.0]
[1642507634720,3.7,3172.1,3171.8,1.0]
[1642507634920,4.78323631,3172.2,3171.8,1.0]
[1642507634921,4.00044478,3172.0,3171.8,1.0]
[1642507635119,3.501,3171.9,3171.8,1.0]
[1642507635323,6.97411,3171.8,3171.1,6.04367815]
[1642507635621,6.97411,3171.8,3171.2,0.00397896]
[1642507635622,1.23953,3171.7,3171.2,0.00397896]
[1642507636020,1.29963685,3172.1,3171.2,0.00397896]
[1642507636321,0.00113685,3172.1,3171.2,0.00397896]
[1642507636525,0.00113685,3172.1,3171.3,0.126]
[1642507636770,0.00113685,3172.1,3172.0,3.40730725]
[1642507636962,0.00113685,3172.1,3172.0,1.0]
[1642507637261,0.00113685,3172.1,3172.0,0.3]
[1642507637661,0.00113685,3172.1,3171.7,0.3]
[1642507637863,0.00113685,3172.1,3171.5,0.126]
[1642507638062,0.00113685,3172.1,3171.5,1.7882209]
[1642507638262,0.00113685,3172.1,3171.6,1.99592142]
[1642507638762,0.00113685,3172.1,3171.7,0.00113684]
[1642507639467,0.78937685,3172.1,3171.7,0.00113684]
[1642507639867,0.78937685,3172.1,3171.9,1.56359365]
[1642507640068,0.78937685,3172.1,3171.9,1.86359365]
[1642507641012,0.78937685,3172.1,3171.9,0.3]
[1642507641411,0.78937685,3172.1,3171.7,1.86473049]
[1642507643415,0.78937685,3172.1,3171.7,0.30113684]
[1642507644666,0.126,3172.0,3171.7,0.30113684]
[1642507645665,0.13296254,3172.0,3171.7,0.30113684]
[1642507645867,1.19836254,3172.0,3171.7,0.00113684]
[1642507646468,0.3,3171.9,3171.7,0.00113684]
[1642507646668,4.72447657,3171.8,3171.7,0.00113684]
[1642507647173,5.17547657,3171.8,3171.7,0.00113684]
[1642507647371,5.17547657,3171.8,3170.9,0.8771536]
[1642507647372,0.79278693,3171.5,3170.9,0.8771536]
[1642507647570,0.79278693,3171.5,3170.5,0.126]
[1642507647571,5.4,3171.4,3170.6,0.8771536]
[1642507647769,5.642,3171.3,3170.6,0.8771536]
[1642507648013,0.3,3171.1,3170.6,0.8771536]
[1642507648215,0.577,3171.0,3170.7,0.00170527]
[1642507648515,3.28878,3170.8,3170.1,3.18773574]
[1642507648715,1.36578,3170.7,3169.6,3.18773574]
[1642507648915,1.36578,3170.7,3170.2,0.00284211]
[1642507649118,0.01299388,3170.6,3170.2,0.00284211]
[1642507649320,6.219,3170.5,3170.2,0.00284211]
[1642507649522,6.219,3170.5,3170.2,1.10627618]
[1642507649720,0.451,3170.5,3170.2,0.00284211]
[1642507649918,0.451,3170.5,3170.3,0.00227369]
[1642507650120,0.78883,3170.4,3170.3,0.00227369]
[1642507650320,0.00113685,3170.9,3170.3,0.00227369]
[1642507650321,0.45213685,3170.9,3170.3,0.00227369]
[1642507650520,0.00113685,3170.9,3170.3,0.00227369]
[1642507650718,0.00355225,3170.5,3170.3,0.00227369]
[1642507651117,0.01017033,3170.6,3170.3,0.00227369]
[1642507651118,0.00012258,3170.6,3170.5,3.05]
[1642507651517,0.00012258,3170.6,3170.5,0.00113684]
[1642507652168,0.00012258,3170.6,3170.5,1.12041068]
[1642507652560,0.00012258,3170.6,3170.5,1.12154752]
[1642507652761,4.384442,3170.6,3170.5,1.12154752]
[1642507652962,4.258442,3170.6,3170.5,1.12154752]
[1642507653163,4.384442,3170.6,3170.5,0.00113684]
[1642507653562,4.384442,3170.6,3170.4,0.00170527]
[1642507653763,0.451,3170.5,3170.4,0.00170527]
[1642507654569,0.00012258,3170.6,3170.4,0.00170527]
[1642507654772,0.00012258,3170.6,3170.3,0.00227369]
[1642507655267,0.00012258,3170.6,3170.4,1.12041068]
[1642507655711,0.003603,3170.5,3170.4,1.12041068]
[1642507656112,0.003603,3170.5,3170.4,1.12211595]
[1642507658620,0.003603,3170.5,3170.3,1.57374061]
[1642507658821,0.126,3170.4,3170.3,1.57374061]
[1642507659018,0.003603,3170.5,3170.3,1.57374061]
[1642507659971,0.003603,3170.5,3170.2,1.84404127]
[1642507660766,0.003603,3170.5,3170.2,3.41778188]
[1642507662869,0.003603,3170.5,3170.2,1.84404127]
[1642507663113,0.129603,3170.5,3170.2,1.84404127]
[1642507663715,0.003603,3170.5,3170.2,1.84404127]
[1642507664118,0.003603,3170.5,3170.2,5.20638788]
[1642507664319,0.003603,3170.5,3170.3,0.126]
[1642507665225,0.003603,3170.5,3170.4,1.57374061]
[1642507666419,0.003603,3170.5,3170.3,0.126]
[1642507667864,0.003603,3170.5,3170.3,0.914603]
[1642507668660,0.003603,3170.5,3170.2,1.84404127]
[1642507668862,1.25738758,3170.4,3170.2,1.84404127]
[1642507669061,2.04613758,3170.4,3170.1,1.57374061]
[1642507669365,2.04613758,3170.4,3170.2,0.00113684]
[1642507669563,3.526,3170.3,3170.2,0.00113684]
[1642507670164,0.126,3170.3,3170.2,0.00113684]
[1642507670612,0.12948289,3170.3,3170.2,0.00113684]
[1642507670811,0.12948289,3170.3,3170.1,0.00170527]
[1642507672010,0.78887,3170.2,3169.7,0.00397896]
[1642507672211,1.57775,3170.2,3169.7,0.00397896]
[1642507672915,4.8792872,3170.2,3169.7,0.00397896]
[1642507673112,0.126,3170.1,3169.7,0.00397896]
[1642507673316,0.577,3170.1,3169.7,0.00397896]
[1642507673514,3.52493045,3170.0,3169.7,0.00397896]
[1642507673713,0.126,3169.9,3169.7,0.00397896]
[1642507673915,0.78905,3169.8,3169.5,1.577124]
[1642507674113,0.126,3169.7,3169.5,1.577124]
[1642507674572,1.17084983,3169.6,3169.5,1.577124]
[1642507674970,1.17084983,3169.6,3169.5,0.00113685]
[1642507675476,7.503,3169.5,3169.2,0.00284212]
[1642507676071,9.08096,3169.5,3169.2,0.00284212]
[1642507676271,1.04750429,3169.6,3169.2,0.00284212]
[1642507676872,1.83647429,3169.6,3169.2,0.00284212]
[1642507677571,1.57796,3169.5,3169.2,0.00284212]
[1642507677772,2.43626,3169.5,3169.2,0.00284212]
[1642507678212,3.22529,3169.5,3169.2,0.00284212]
[1642507678512,3.22529,3169.5,3169.1,0.00341054]
[1642507678913,2.43626,3169.5,3168.9,0.00454739]
[1642507679317,2.43626,3169.5,3169.0,2.0877822]
[1642507679517,2.49889718,3169.4,3169.0,2.0877822]
[1642507679719,3.28782718,3169.4,3169.1,0.00341054]
[1642507680419,0.78893,3169.4,3169.1,2.55103703]
[1642507680722,0.7927591,3169.4,3169.2,0.00284212]
[1642507681319,3.27100947,3169.3,3169.2,0.00284212]
[1642507681520,0.7187,3169.3,3169.2,0.19326823]
[1642507682667,2.52460322,3169.3,3169.2,0.19326823]
[1642507683665,2.65080322,3169.3,3169.2,0.19326823]
[1642507684670,2.52460322,3169.3,3169.1,0.00153312]
[1642507684870,3.31377322,3169.3,3169.1,0.00153312]
[1642507685272,3.31377322,3169.3,3169.0,1.58124197]
[1642507685512,0.1262,3169.2,3168.9,1.58470565]
[1642507685713,0.1262,3169.2,3168.9,1.58124197]
[1642507685916,1.50289718,3169.1,3169.0,0.00113685]
[1642507686913,0.91531,3169.2,3169.0,0.00113685]
[1642507687113,0.78911,3169.2,3169.0,1.58237882]
[1642507687314,0.1262,3169.1,3169.0,1.58237882]
[1642507687715,7.6242,3169.1,3169.0,1.58237882]
[1642507687916,7.498,3169.1,3169.0,1.58237882]
[1642507688315,7.498,3169.1,3169.0,0.00113685]
[1642507688715,7.498,3169.1,3168.9,0.00170527]
[1642507690072,7.498,3169.1,3169.0,1.58531744]
[1642507690673,7.50108322,3169.1,3169.0,1.58531744]
[1642507691080,7.50108322,3169.1,3168.9,0.00170527]
[1642507692678,7.50108322,3169.1,3168.9,1.58702271]
[1642507693314,7.50108322,3169.1,3168.9,0.00170527]
[1642507693513,7.62728322,3169.1,3168.9,0.00170527]
[1642507693916,5.851,3169.0,3168.9,0.00170527]
[1642507694118,6.8296903,3169.0,3168.9,0.00170527]
[1642507694320,9.0660903,3169.0,3168.9,0.00170527]
[1642507694519,5.35,3168.9,3168.2,3.14888902]
[1642507694725,8.50987465,3168.8,3168.2,3.14888902]
[1642507694924,4.91261639,3168.3,3168.2,3.14888902]
[1642507695223,4.91261639,3168.3,3168.2,0.00397896]
[1642507695224,3.03298015,3168.3,3168.2,0.00397896]
[1642507695419,4.03298015,3168.3,3168.2,0.00397896]
[1642507695620,4.03298015,3168.3,3167.8,1.18507052]
[1642507695921,0.78944,3168.1,3167.7,3.93611127]
[1642507696121,0.78944,3168.1,3167.4,1.18507052]
[1642507696122,0.5772,3168.0,3167.6,1.85513748]
[1642507696523,0.00170527,3168.2,3167.7,3.21177855]
[1642507696784,0.00170527,3168.2,3167.7,0.00113685]
[1642507697069,0.00113684,3168.1,3167.7,0.00113685]
[1642507697268,0.00113684,3168.1,3167.8,0.1262]
[1642507697470,0.00397896,3168.6,3168.5,2.13532421]
[1642507697670,0.00397896,3168.6,3168.5,2.43532421]
[1642507697870,0.00397896,3168.6,3168.5,4.93532421]
[1642507698271,2.94396957,3169.0,3168.6,4.8]
[1642507698471,2.94396957,3169.0,3168.5,2.43532421]
[1642507698670,0.00170527,3168.9,3168.5,2.43532421]
[1642507699071,0.00113685,3168.8,3168.5,2.43532421]
[1642507699376,0.00113685,3168.8,3168.5,5.59082761]
[1642507700177,0.00113685,3168.8,3168.6,3.15306419]
[1642507700613,0.0033015,3168.7,3168.6,3.15306419]
[1642507700815,0.00113685,3168.8,3168.6,3.15306419]
[1642507701615,0.00113685,3168.8,3168.5,5.59082761]
[1642507701616,0.00113685,3168.8,3168.5,4.80193761]
[1642507702216,0.00113685,3168.8,3168.4,0.7890206]
[1642507702415,0.00113685,3168.8,3168.1,0.1262]
[1642507702616,0.1262,3168.7,3168.1,3.30678415]
[1642507702817,0.451,3168.6,3168.2,0.00227369]
[1642507703015,0.1262,3168.5,3168.2,0.00227369]
[1642507703315,1.32152711,3168.4,3168.2,0.00227369]
[1642507703517,2.3762,3168.3,3168.2,0.00227369]
[1642507704125,3.6762,3168.3,3168.2,0.00227369]
[1642507704370,2.6762,3168.3,3168.2,0.00227369]
[1642507704572,3.6762,3168.3,3168.2,0.00227369]
[1642507704768,4.1272,3168.3,3168.2,0.00227369]